[Event "*** Titled Tuesday Blitz"]
[Site "Chess.com"]
[Date "2019.04.02"]
[Round "6"]
[White "beatles_22"]
[Black "Konavets"]
[Result "0-1"]
[WhiteElo "2651"]
[BlackElo "2814"]
[TimeControl "180+2"]
[EndTime "15:18:49 PDT"]
[Termination "Konavets won by resignation"]

1. e4 {[%clk 0:03:01.4]} 1... c6 {[%clk 0:02:59.6]} 2. d4 {[%clk 0:03:02]} 2...
d5 {[%clk 0:03:01.5]} 3. Nc3 {[%clk 0:03:03.6]} 3... g6 {[%clk 0:03:02.2]} 4.
Nf3 {[%clk 0:02:55.2]} 4... Bg7 {[%clk 0:03:03.5]} 5. h3 {[%clk 0:02:53.8]} 5...
dxe4 {[%clk 0:03:02.7]} 6. Nxe4 {[%clk 0:02:55.7]} 6... Nf6 {[%clk 0:03:04.2]}
7. Nxf6+ {[%clk 0:02:57.1]} 7... Bxf6 {[%clk 0:03:06.1]} 8. Bh6 {[%clk
0:02:56.4]} 8... c5 {[%clk 0:03:06.6]} 9. c3 {[%clk 0:02:41.5]} 9... cxd4 {[%clk
0:03:06.3]} 10. Nxd4 {[%clk 0:02:39.5]} 10... Qb6 {[%clk 0:03:07.1]} 11. Bb5+
{[%clk 0:02:38.4]} 11... Bd7 {[%clk 0:03:08.1]} 12. Qe2 {[%clk 0:01:58.1]} 12...
Bxb5 {[%clk 0:02:51.3]} 13. Qxb5+ {[%clk 0:01:58.2]} 13... Nd7 {[%clk
0:02:51.3]} 14. Qxb6 {[%clk 0:01:53.1]} 14... Nxb6 {[%clk 0:02:52]} 15. O-O-O
{[%clk 0:01:52.2]} 15... O-O-O {[%clk 0:02:52.3]} 16. Nb3 {[%clk 0:01:41.5]}
16... Nc4 {[%clk 0:02:44.9]} 17. Nd2 {[%clk 0:01:22.7]} 17... Nd6 {[%clk
0:02:42.1]} 18. Bf4 {[%clk 0:01:20.2]} 18... Rd7 {[%clk 0:02:41.1]} 19. Bxd6
{[%clk 0:01:14.3]} 19... Rxd6 {[%clk 0:02:43]} 20. Ne4 {[%clk 0:01:15.5]} 20...
Rxd1+ {[%clk 0:02:44.2]} 21. Rxd1 {[%clk 0:01:17.3]} 21... Be5 {[%clk
0:02:45.4]} 22. Kc2 {[%clk 0:01:17.8]} 22... h5 {[%clk 0:02:45.4]} 23. Ng5
{[%clk 0:01:18.6]} 23... Bf4 {[%clk 0:02:42]} 24. Nf3 {[%clk 0:01:13.5]} 24...
h4 {[%clk 0:02:41.3]} 25. Re1 {[%clk 0:01:08.8]} 25... e6 {[%clk 0:02:41.3]} 26.
Re4 {[%clk 0:01:09.7]} 26... g5 {[%clk 0:02:42.5]} 27. Nd4 {[%clk 0:01:10.3]}
27... Rd8 {[%clk 0:02:41.8]} 28. Ne2 {[%clk 0:01:10.8]} 28... Rd2+ {[%clk
0:02:42.1]} 29. Kb3 {[%clk 0:01:11.8]} 29... Bc7 {[%clk 0:02:35.6]} 30. c4
{[%clk 0:01:05.3]} 30... Bb6 {[%clk 0:02:34.2]} 31. Kc3 {[%clk 0:01:01.4]} 31...
Rd1 {[%clk 0:02:29.8]} 32. c5 {[%clk 0:01:02.8]} 32... Bd8 {[%clk 0:02:21]} 33.
Re3 {[%clk 0:00:56.9]} 33... Rf1 {[%clk 0:02:18]} 34. Rf3 {[%clk 0:00:57.7]}
34... f5 {[%clk 0:02:19.2]} 35. Kc2 {[%clk 0:00:51.2]} 35... Bf6 {[%clk
0:02:19.5]} 36. Nc1 {[%clk 0:00:52]} 36... f4 {[%clk 0:02:17.5]} 37. Nb3 {[%clk
0:00:46.1]} 37... Rg1 {[%clk 0:02:09.9]} 38. Kd3 {[%clk 0:00:16.9]} 38... Rxg2
{[%clk 0:02:08.7]} 39. Ke4 {[%clk 0:00:18.8]} 39... Bxb2 {[%clk 0:02:08]} 40.
Na5 {[%clk 0:00:19]} 40... Rg1 {[%clk 0:02:06.7]} 41. Nc4 {[%clk 0:00:19.6]}
41... Re1+ {[%clk 0:02:07.5]} 42. Kd3 {[%clk 0:00:20.8]} 42... Be5 {[%clk
0:02:08.7]} 43. Kd2 {[%clk 0:00:21.5]} 43... Re4 {[%clk 0:02:09.7]} 44. Kd3
{[%clk 0:00:21.5]} 44... Rd4+ {[%clk 0:02:11]} 45. Kc3 {[%clk 0:00:23]} 45...
Rd5+ {[%clk 0:02:12.1]} 46. Kb4 {[%clk 0:00:23.6]} 46... Kc7 {[%clk 0:02:10.2]}
47. Rb3 {[%clk 0:00:23.1]} 47... Bd4 {[%clk 0:02:11]} 48. c6 {[%clk 0:00:21.1]}
48... b5 {[%clk 0:02:08.5]} 49. Na5 {[%clk 0:00:21.3]} 49... Bxf2 {[%clk
0:02:09.5]} 50. a4 {[%clk 0:00:19.6]} 50... Be1+ {[%clk 0:02:10.8]} 51. Ka3
{[%clk 0:00:19.2]} 51... b4+ {[%clk 0:02:11.7]} 52. Kb2 {[%clk 0:00:19.2]} 52...
Rxa5 {[%clk 0:02:12.9]} 0-1

[Event "*** Titled Tuesday Blitz"]
[Site "Chess.com"]
[Date "2019.04.02"]
[Round "6"]
[White "nutibara"]
[Black "VeraNebolsina"]
[Result "1-0"]
[WhiteElo "2394"]
[BlackElo "2398"]
[TimeControl "180+2"]
[EndTime "15:18:59 PDT"]
[Termination "nutibara won by resignation"]

1. e4 {[%clk 0:03:01.9]} 1... c5 {[%clk 0:02:59.3]} 2. Nf3 {[%clk 0:03:03]} 2...
d6 {[%clk 0:02:59.4]} 3. d4 {[%clk 0:03:04.5]} 3... cxd4 {[%clk 0:03:00]} 4.
Nxd4 {[%clk 0:03:06.4]} 4... Nf6 {[%clk 0:03:01.3]} 5. Nc3 {[%clk 0:03:07.7]}
5... a6 {[%clk 0:03:02.5]} 6. Bc4 {[%clk 0:03:09.2]} 6... e6 {[%clk 0:02:59.8]}
7. Bb3 {[%clk 0:03:10.2]} 7... Be7 {[%clk 0:02:58.7]} 8. g4 {[%clk 0:03:10.5]}
8... h6 {[%clk 0:02:51.8]} 9. Be3 {[%clk 0:03:10.4]} 9... Nbd7 {[%clk
0:02:46.7]} 10. f4 {[%clk 0:02:03.4]} 10... Nc5 {[%clk 0:02:43.8]} 11. Qf3
{[%clk 0:01:55.1]} 11... e5 {[%clk 0:02:32.3]} 12. Nf5 {[%clk 0:01:49.1]} 12...
Bxf5 {[%clk 0:02:17.5]} 13. exf5 {[%clk 0:01:47.7]} 13... Qa5 {[%clk 0:02:11]}
14. O-O-O {[%clk 0:01:29.3]} 14... e4 {[%clk 0:02:01.8]} 15. Qg2 {[%clk
0:01:22]} 15... Nxb3+ {[%clk 0:02:01.4]} 16. cxb3 {[%clk 0:01:21.1]} 16... Rc8
{[%clk 0:01:53.6]} 17. Kb1 {[%clk 0:01:20.8]} 17... Rxc3 {[%clk 0:01:46.4]} 18.
bxc3 {[%clk 0:01:21.4]} 18... Nd5 {[%clk 0:01:44.9]} 19. Bd4 {[%clk 0:00:53.8]}
19... O-O {[%clk 0:01:25.4]} 20. Qxe4 {[%clk 0:00:44]} 20... Rc8 {[%clk
0:01:10.3]} 21. Rc1 {[%clk 0:00:30.4]} 21... Bf6 {[%clk 0:01:00.2]} 22. Bxf6
{[%clk 0:00:21.7]} 22... gxf6 {[%clk 0:01:01.2]} 23. Qd4 {[%clk 0:00:21.6]}
23... Nxc3+ {[%clk 0:01:00.6]} 24. Rxc3 {[%clk 0:00:21.5]} 24... Rxc3 {[%clk
0:00:58.1]} 25. Qxf6 {[%clk 0:00:11.7]} 25... Rh3 {[%clk 0:00:40.4]} 26. Rc1
{[%clk 0:00:08.2]} 1-0

[Event "*** Titled Tuesday Blitz"]
[Site "Chess.com"]
[Date "2019.04.02"]
[Round "6"]
[White "Alex_Molchanov"]
[Black "Didici"]
[Result "0-1"]
[WhiteElo "2459"]
[BlackElo "2602"]
[TimeControl "180+2"]
[EndTime "15:19:06 PDT"]
[Termination "Didici won by checkmate"]

1. c4 {[%clk 0:03:01.9]} 1... e5 {[%clk 0:02:58.7]} 2. g3 {[%clk 0:03:02.1]}
2... c6 {[%clk 0:02:58.2]} 3. d4 {[%clk 0:03:02.3]} 3... e4 {[%clk 0:02:57.5]}
4. Nc3 {[%clk 0:02:57.3]} 4... d5 {[%clk 0:02:57.8]} 5. Qb3 {[%clk 0:02:52.9]}
5... Nf6 {[%clk 0:02:56.4]} 6. Bg5 {[%clk 0:02:52.8]} 6... Nbd7 {[%clk
0:02:56.5]} 7. cxd5 {[%clk 0:02:48]} 7... cxd5 {[%clk 0:02:56.8]} 8. e3 {[%clk
0:02:41.8]} 8... Bd6 {[%clk 0:02:47.2]} 9. Nge2 {[%clk 0:02:24.3]} 9... h6
{[%clk 0:02:40.6]} 10. Bxf6 {[%clk 0:02:19.5]} 10... Nxf6 {[%clk 0:02:41.1]} 11.
Nf4 {[%clk 0:02:18.9]} 11... Bxf4 {[%clk 0:02:39.1]} 12. gxf4 {[%clk 0:02:20.8]}
12... O-O {[%clk 0:02:39.5]} 13. Rg1 {[%clk 0:02:16.1]} 13... Be6 {[%clk
0:02:36.7]} 14. Be2 {[%clk 0:02:11.7]} 14... a6 {[%clk 0:02:34.6]} 15. Na4
{[%clk 0:02:07]} 15... Nd7 {[%clk 0:02:27.1]} 16. Nc3 {[%clk 0:01:56.3]} 16...
b5 {[%clk 0:02:24.5]} 17. f5 {[%clk 0:01:51.1]} 17... Bxf5 {[%clk 0:02:24.4]}
18. Qxd5 {[%clk 0:01:51.3]} 18... Be6 {[%clk 0:02:23.4]} 19. Qxe4 {[%clk
0:01:43.8]} 19... b4 {[%clk 0:02:20.8]} 20. Na4 {[%clk 0:01:24.3]} 20... Qa5
{[%clk 0:02:06.1]} 21. b3 {[%clk 0:01:24.8]} 21... Rac8 {[%clk 0:02:06.6]} 22.
Bd3 {[%clk 0:01:19.3]} 22... Nf6 {[%clk 0:02:02.3]} 23. Qg2 {[%clk 0:01:19.5]}
23... g5 {[%clk 0:01:57.5]} 24. h4 {[%clk 0:00:40.1]} 24... g4 {[%clk
0:01:55.9]} 25. Qg3 {[%clk 0:00:36.3]} 25... Bf5 {[%clk 0:01:35.8]} 26. Be2
{[%clk 0:00:32.7]} 26... h5 {[%clk 0:01:26.3]} 27. Qf4 {[%clk 0:00:33.4]} 27...
Ne4 {[%clk 0:01:21.8]} 28. f3 {[%clk 0:00:28.7]} 28... Nc3 {[%clk 0:01:18.9]}
29. fxg4 {[%clk 0:00:24.3]} 29... Bg6 {[%clk 0:01:06]} 30. gxh5 {[%clk
0:00:21.4]} 30... Nxe2 {[%clk 0:01:06.5]} 31. Kxe2 {[%clk 0:00:21.4]} 31...
Qxh5+ {[%clk 0:01:04.6]} 32. Ke1 {[%clk 0:00:14.6]} 32... Rc2 {[%clk 0:01:03.3]}
33. Qg4 {[%clk 0:00:14.7]} 33... Qb5 {[%clk 0:00:56.4]} 34. h5 {[%clk
0:00:12.7]} 34... Qd3 {[%clk 0:00:56.4]} 35. Rg3 {[%clk 0:00:14]} 35... Qd2+
{[%clk 0:00:56.9]} 36. Kf1 {[%clk 0:00:12.1]} 36... Qf2# {[%clk 0:00:58.8]} 0-1

[Event "*** Titled Tuesday Blitz"]
[Site "Chess.com"]
[Date "2019.04.02"]
[Round "6"]
[White "Touching3200"]
[Black "vovachesss"]
[Result "0-1"]
[WhiteElo "2380"]
[BlackElo "2525"]
[TimeControl "180+2"]
[EndTime "15:19:10 PDT"]
[Termination "vovachesss won by resignation"]

1. c4 {[%clk 0:03:01.9]} 1... Nf6 {[%clk 0:02:58]} 2. Nc3 {[%clk 0:03:01.9]}
2... d5 {[%clk 0:02:57.4]} 3. cxd5 {[%clk 0:03:00.7]} 3... Nxd5 {[%clk
0:02:58.8]} 4. e4 {[%clk 0:03:02]} 4... Nxc3 {[%clk 0:02:59.4]} 5. bxc3 {[%clk
0:03:02.8]} 5... e5 {[%clk 0:03:00.4]} 6. Nf3 {[%clk 0:03:03.1]} 6... Nc6 {[%clk
0:03:00.7]} 7. Bb5 {[%clk 0:03:04.2]} 7... Bd7 {[%clk 0:02:57.2]} 8. d4 {[%clk
0:03:03.7]} 8... exd4 {[%clk 0:02:57]} 9. cxd4 {[%clk 0:03:04.5]} 9... Bb4+
{[%clk 0:02:58.3]} 10. Bd2 {[%clk 0:03:05.3]} 10... Bxd2+ {[%clk 0:02:58]} 11.
Qxd2 {[%clk 0:03:06.2]} 11... O-O {[%clk 0:02:57]} 12. Rd1 {[%clk 0:02:59.5]}
12... Qe7 {[%clk 0:02:46.7]} 13. Qe2 {[%clk 0:02:52.8]} 13... Qb4+ {[%clk
0:02:38.6]} 14. Rd2 {[%clk 0:02:52.5]} 14... Qb1+ {[%clk 0:02:21.9]} 15. Rd1
{[%clk 0:02:52.7]} 15... Qb4+ {[%clk 0:02:23.5]} 16. Rd2 {[%clk 0:02:53.9]}
16... Rad8 {[%clk 0:02:00.8]} 17. d5 {[%clk 0:02:40.7]} 17... Rfe8 {[%clk
0:01:34.7]} 18. Bd3 {[%clk 0:02:27]} 18... Ne7 {[%clk 0:01:19.2]} 19. Bc4 {[%clk
0:02:07.2]} 19... Qb1+ {[%clk 0:00:49.6]} 20. Rd1 {[%clk 0:02:06.3]} 20... Qb4+
{[%clk 0:00:51]} 21. Rd2 {[%clk 0:02:05.8]} 21... Nf5 {[%clk 0:00:39.4]} 22. O-O
{[%clk 0:01:59.1]} 22... Nd6 {[%clk 0:00:40.3]} 23. Rd4 {[%clk 0:01:49.6]} 23...
Qb6 {[%clk 0:00:20.6]} 24. Rfd1 {[%clk 0:01:30.1]} 24... Bf5 {[%clk 0:00:13.4]}
25. e5 {[%clk 0:01:28.1]} 25... Bg6 {[%clk 0:00:07.5]} 26. Qf1 {[%clk
0:01:12.5]} 26... Nxc4 {[%clk 0:00:07.4]} 27. Qxc4 {[%clk 0:01:12.9]} 27... Bh5
{[%clk 0:00:08.9]} 28. R4d3 {[%clk 0:00:55.8]} 28... Bxf3 {[%clk 0:00:09.3]} 29.
Rxf3 {[%clk 0:00:56.6]} 29... Rxe5 {[%clk 0:00:07]} 30. d6 {[%clk 0:00:58]}
30... Rd7 {[%clk 0:00:08.6]} 31. Rxf7 {[%clk 0:00:55]} 31... Rxf7 {[%clk
0:00:05.1]} 32. d7 {[%clk 0:00:55]} 32... Qxf2+ {[%clk 0:00:06.1]} 33. Kh1
{[%clk 0:00:55.3]} 33... Re1+ {[%clk 0:00:08]} 0-1

[Event "*** Titled Tuesday Blitz"]
[Site "Chess.com"]
[Date "2019.04.02"]
[Round "6"]
[White "CookiesAndIceCream"]
[Black "Mikhail_Golubev"]
[Result "0-1"]
[WhiteElo "2353"]
[BlackElo "2432"]
[TimeControl "180+2"]
[EndTime "15:19:10 PDT"]
[Termination "Mikhail_Golubev won by checkmate"]

1. e4 {[%clk 0:03:01.9]} 1... c5 {[%clk 0:03:00.5]} 2. Nf3 {[%clk 0:02:55.7]}
2... d6 {[%clk 0:03:00.9]} 3. d4 {[%clk 0:02:57.2]} 3... cxd4 {[%clk 0:03:01.4]}
4. Nxd4 {[%clk 0:02:59.1]} 4... Nf6 {[%clk 0:03:01.6]} 5. Nc3 {[%clk 0:03:00.6]}
5... g6 {[%clk 0:03:01.6]} 6. Be3 {[%clk 0:03:01.7]} 6... Bg7 {[%clk 0:03:02.5]}
7. f3 {[%clk 0:03:03.1]} 7... Nc6 {[%clk 0:03:01]} 8. Qd2 {[%clk 0:03:03.4]}
8... O-O {[%clk 0:03:01.6]} 9. Bc4 {[%clk 0:03:04.6]} 9... Bd7 {[%clk 0:03:00]}
10. O-O-O {[%clk 0:03:05.1]} 10... Rb8 {[%clk 0:02:59.5]} 11. Bb3 {[%clk
0:03:03.5]} 11... Na5 {[%clk 0:02:59.4]} 12. Bh6 {[%clk 0:02:58.3]} 12... Bxh6
{[%clk 0:02:54.9]} 13. Qxh6 {[%clk 0:03:00.2]} 13... b5 {[%clk 0:02:54.7]} 14.
Nd5 {[%clk 0:02:33.2]} 14... Nxb3+ {[%clk 0:02:46.7]} 15. axb3 {[%clk
0:02:34.3]} 15... e5 {[%clk 0:02:35.7]} 16. Nf5 {[%clk 0:02:33.2]} 16... Bxf5
{[%clk 0:02:31]} 17. exf5 {[%clk 0:02:32.9]} 17... Nxd5 {[%clk 0:01:53.7]} 18.
Rxd5 {[%clk 0:02:34.8]} 18... Rb6 {[%clk 0:01:53.8]} 19. Kb1 {[%clk 0:01:57.5]}
19... gxf5 {[%clk 0:01:31.7]} 20. f4 {[%clk 0:01:37.7]} 20... f6 {[%clk
0:01:15.8]} 21. Rhd1 {[%clk 0:00:56.6]} 21... Ra6 {[%clk 0:00:28.5]} 22. R1d3
{[%clk 0:00:41]} 22... Qa5 {[%clk 0:00:20.6]} 23. Rg3+ {[%clk 0:00:23.2]} 23...
Kf7 {[%clk 0:00:20.9]} 24. c3 {[%clk 0:00:24.6]} 24... Qa1+ {[%clk 0:00:20.1]}
25. Kc2 {[%clk 0:00:25.8]} 25... Ra2 {[%clk 0:00:19.9]} 26. Qg7+ {[%clk
0:00:17.2]} 26... Ke8 {[%clk 0:00:19.8]} 27. Rxb5 {[%clk 0:00:09.5]} 27... Qxb2+
{[%clk 0:00:18.9]} 28. Kd3 {[%clk 0:00:06.9]} 28... Qe2# {[%clk 0:00:19.5]} 0-1

[Event "*** Titled Tuesday Blitz"]
[Site "Chess.com"]
[Date "2019.04.02"]
[Round "6"]
[White "Karina_Oparina"]
[Black "NMZanette"]
[Result "1/2-1/2"]
[WhiteElo "2244"]
[BlackElo "2221"]
[TimeControl "180+2"]
[EndTime "15:19:17 PDT"]
[Termination "Game drawn by repetition"]

1. Nf3 {[%clk 0:02:59.3]} 1... Nf6 {[%clk 0:03:00.5]} 2. g3 {[%clk 0:02:59.8]}
2... g6 {[%clk 0:03:01.5]} 3. Bg2 {[%clk 0:03:00.3]} 3... Bg7 {[%clk 0:03:03.2]}
4. O-O {[%clk 0:03:00.5]} 4... O-O {[%clk 0:03:03.9]} 5. c4 {[%clk 0:02:59.6]}
5... d6 {[%clk 0:03:04.3]} 6. Nc3 {[%clk 0:02:58.1]} 6... e5 {[%clk 0:03:04.3]}
7. d3 {[%clk 0:02:56.4]} 7... h6 {[%clk 0:03:03.3]} 8. Rb1 {[%clk 0:02:55.4]}
8... Nc6 {[%clk 0:03:00.9]} 9. b4 {[%clk 0:02:55.9]} 9... Ne8 {[%clk 0:02:57.7]}
10. b5 {[%clk 0:02:56.1]} 10... Ne7 {[%clk 0:02:58.8]} 11. a4 {[%clk 0:02:54.8]}
11... f5 {[%clk 0:02:54.3]} 12. Bd2 {[%clk 0:02:55.3]} 12... g5 {[%clk
0:02:53.4]} 13. a5 {[%clk 0:02:49.4]} 13... Rb8 {[%clk 0:02:53.9]} 14. Ne1
{[%clk 0:02:43.1]} 14... Be6 {[%clk 0:02:53.1]} 15. Nc2 {[%clk 0:02:41.5]} 15...
Nf6 {[%clk 0:02:48.2]} 16. a6 {[%clk 0:02:37.3]} 16... b6 {[%clk 0:02:41.4]} 17.
Nb4 {[%clk 0:02:36.8]} 17... Qe8 {[%clk 0:02:39.1]} 18. Nc6 {[%clk 0:02:29.3]}
18... Nxc6 {[%clk 0:02:38.7]} 19. Bxc6 {[%clk 0:02:29.9]} 19... Qh5 {[%clk
0:02:32.8]} 20. Bg2 {[%clk 0:02:27.9]} 20... Ng4 {[%clk 0:02:30.4]} 21. h3
{[%clk 0:02:28]} 21... Nf6 {[%clk 0:02:31.3]} 22. e3 {[%clk 0:02:20.8]} 22...
Qg6 {[%clk 0:02:30]} 23. Nd5 {[%clk 0:02:07.2]} 23... Bxd5 {[%clk 0:02:08.7]}
24. Bxd5+ {[%clk 0:02:05.7]} 24... Kh8 {[%clk 0:02:07.2]} 25. e4 {[%clk
0:01:58.3]} 25... f4 {[%clk 0:01:57.7]} 26. g4 {[%clk 0:01:58.4]} 26... h5
{[%clk 0:01:55.7]} 27. f3 {[%clk 0:01:58.3]} 27... Bh6 {[%clk 0:01:49.5]} 28.
Kg2 {[%clk 0:01:57.6]} 28... Rfe8 {[%clk 0:01:35.9]} 29. Qe2 {[%clk 0:01:54.6]}
29... Re7 {[%clk 0:01:35.9]} 30. Rh1 {[%clk 0:01:52.9]} 30... h4 {[%clk
0:01:31.4]} 31. Kf2 {[%clk 0:01:51]} 31... Bf8 {[%clk 0:01:31.7]} 32. Bc3 {[%clk
0:01:50.3]} 32... Nd7 {[%clk 0:01:28.9]} 33. Qb2 {[%clk 0:01:45]} 33... Bg7
{[%clk 0:01:29.6]} 34. Ke2 {[%clk 0:01:45.2]} 34... Qf6 {[%clk 0:01:29.6]} 35.
Rbd1 {[%clk 0:01:43.2]} 35... Nc5 {[%clk 0:01:30.4]} 36. Qc2 {[%clk 0:01:40.3]}
36... Rf8 {[%clk 0:01:30.1]} 37. d4 {[%clk 0:01:35.5]} 37... exd4 {[%clk
0:01:31]} 38. Bxd4 {[%clk 0:01:29.9]} 38... Qg6 {[%clk 0:01:28.8]} 39. Bf2
{[%clk 0:01:21.8]} 39... Rfe8 {[%clk 0:01:26.4]} 40. Rhe1 {[%clk 0:01:20.3]}
40... Rf8 {[%clk 0:01:23.6]} 41. Kf1 {[%clk 0:01:20.5]} 41... Nd7 {[%clk
0:01:24.6]} 42. Re2 {[%clk 0:01:18.1]} 42... Ne5 {[%clk 0:01:24.8]} 43. Kg2
{[%clk 0:01:18.7]} 43... Qe8 {[%clk 0:01:24.5]} 44. Bd4 {[%clk 0:01:16.9]} 44...
Qg6 {[%clk 0:01:22.5]} 45. Bf2 {[%clk 0:01:16.3]} 45... Kh7 {[%clk 0:01:23.2]}
46. Rc1 {[%clk 0:01:16.7]} 46... Kh6 {[%clk 0:01:24.2]} 47. Qd1 {[%clk
0:01:14.8]} 47... Qf6 {[%clk 0:01:24.9]} 48. Qd2 {[%clk 0:01:02.7]} 48... Ree8
{[%clk 0:01:25.3]} 49. Ree1 {[%clk 0:01:02.8]} 49... Qe7 {[%clk 0:01:26]} 50.
Red1 {[%clk 0:01:02.8]} 50... Rd8 {[%clk 0:01:25.9]} 51. Bb7 {[%clk 0:01:00.4]}
51... Nd7 {[%clk 0:01:26.2]} 52. Bd5 {[%clk 0:00:59.3]} 52... Ne5 {[%clk
0:01:26.6]} 53. Bb7 {[%clk 0:00:59.7]} 53... Nd7 {[%clk 0:01:27.2]} 54. Bd5
{[%clk 0:01:00.3]} 54... Ne5 {[%clk 0:01:28]} 55. Bb7 {[%clk 0:01:00.9]} 55...
Nd7 {[%clk 0:01:28.9]} 1/2-1/2

[Event "*** Titled Tuesday Blitz"]
[Site "Chess.com"]
[Date "2019.04.02"]
[Round "6"]
[White "BvsN"]
[Black "ZeroRealtorFade"]
[Result "0-1"]
[WhiteElo "2270"]
[BlackElo "2264"]
[TimeControl "180+2"]
[EndTime "15:19:32 PDT"]
[Termination "ZeroRealtorFade won by resignation"]

1. d4 {[%clk 0:03:01.9]} 1... Nf6 {[%clk 0:02:59.7]} 2. c4 {[%clk 0:03:02.3]}
2... c5 {[%clk 0:03:01.1]} 3. d5 {[%clk 0:03:03.3]} 3... b5 {[%clk 0:03:02.5]}
4. cxb5 {[%clk 0:03:04.8]} 4... a6 {[%clk 0:03:03.9]} 5. e3 {[%clk 0:03:06]}
5... g6 {[%clk 0:03:03.8]} 6. Nc3 {[%clk 0:03:06.5]} 6... Bg7 {[%clk 0:03:04.9]}
7. a4 {[%clk 0:03:02.2]} 7... O-O {[%clk 0:03:04.6]} 8. e4 {[%clk 0:03:01.3]}
8... d6 {[%clk 0:03:05.3]} 9. Nf3 {[%clk 0:03:02.2]} 9... Nbd7 {[%clk
0:03:03.6]} 10. Bd2 {[%clk 0:03:02]} 10... axb5 {[%clk 0:03:04.3]} 11. Bxb5
{[%clk 0:02:59.9]} 11... Ng4 {[%clk 0:02:59.8]} 12. O-O {[%clk 0:02:58.4]} 12...
Nge5 {[%clk 0:03:00.2]} 13. Nxe5 {[%clk 0:02:45.9]} 13... Bxe5 {[%clk
0:02:59.2]} 14. Bh6 {[%clk 0:02:34.9]} 14... Re8 {[%clk 0:02:57.6]} 15. f4
{[%clk 0:02:33]} 15... Bd4+ {[%clk 0:02:57.2]} 16. Kh1 {[%clk 0:02:33.8]} 16...
Ba6 {[%clk 0:02:57]} 17. Qf3 {[%clk 0:01:56.6]} 17... Bxb5 {[%clk 0:02:53.7]}
18. axb5 {[%clk 0:01:50.6]} 18... Rxa1 {[%clk 0:02:37.7]} 19. Rxa1 {[%clk
0:01:50.8]} 19... Qb6 {[%clk 0:02:33]} 20. Rf1 {[%clk 0:01:20.1]} 20... f6
{[%clk 0:02:25.6]} 21. h4 {[%clk 0:01:14.7]} 21... Bxc3 {[%clk 0:02:15.4]} 22.
bxc3 {[%clk 0:01:09.2]} 22... Qxb5 {[%clk 0:02:16.2]} 23. h5 {[%clk 0:01:06.6]}
23... Nf8 {[%clk 0:02:03.1]} 24. e5 {[%clk 0:00:58.1]} 24... Ra8 {[%clk
0:01:26.8]} 25. Re1 {[%clk 0:00:51.4]} 25... Kf7 {[%clk 0:01:07.8]} 26. Bxf8
{[%clk 0:00:45]} 26... Rxf8 {[%clk 0:00:54.2]} 27. Qe3 {[%clk 0:00:31.6]} 27...
Re8 {[%clk 0:00:50]} 28. c4 {[%clk 0:00:27.1]} 28... Qa4 {[%clk 0:00:39.2]} 29.
f5 {[%clk 0:00:15.7]} 29... g5 {[%clk 0:00:37.6]} 30. exd6 {[%clk 0:00:04.8]}
30... exd6 {[%clk 0:00:37.8]} 31. Qxe8+ {[%clk 0:00:05.9]} 31... Qxe8 {[%clk
0:00:38.8]} 32. Rxe8 {[%clk 0:00:07.5]} 32... Kxe8 {[%clk 0:00:40.7]} 33. g4
{[%clk 0:00:07.9]} 33... Kd7 {[%clk 0:00:39.8]} 34. Kg2 {[%clk 0:00:09.2]} 34...
Kc7 {[%clk 0:00:41.2]} 35. Kf3 {[%clk 0:00:10.2]} 35... Kb6 {[%clk 0:00:42.6]}
36. Ke3 {[%clk 0:00:11]} 36... Ka5 {[%clk 0:00:43.5]} 37. Kd2 {[%clk 0:00:08.7]}
37... Kb4 {[%clk 0:00:43.4]} 38. Kd3 {[%clk 0:00:10.3]} 38... h6 {[%clk
0:00:42.9]} 0-1

[Event "*** Titled Tuesday Blitz"]
[Site "Chess.com"]
[Date "2019.04.02"]
[Round "6"]
[White "Kimster98"]
[Black "Sanyura"]
[Result "1-0"]
[WhiteElo "2602"]
[BlackElo "2438"]
[TimeControl "180+2"]
[EndTime "15:19:36 PDT"]
[Termination "Kimster98 won by checkmate"]

1. Nf3 {[%clk 0:03:01.9]} 1... Nf6 {[%clk 0:03:00.5]} 2. b3 {[%clk 0:03:02.9]}
2... g6 {[%clk 0:03:02]} 3. Bb2 {[%clk 0:03:04.4]} 3... Bg7 {[%clk 0:03:03.5]}
4. g3 {[%clk 0:03:06.3]} 4... O-O {[%clk 0:03:04.6]} 5. Bg2 {[%clk 0:03:07.9]}
5... d6 {[%clk 0:03:05.9]} 6. d4 {[%clk 0:03:09.2]} 6... Nbd7 {[%clk 0:03:05.2]}
7. O-O {[%clk 0:03:10.1]} 7... c6 {[%clk 0:03:06.8]} 8. c4 {[%clk 0:03:11.2]}
8... b5 {[%clk 0:03:08.3]} 9. cxb5 {[%clk 0:03:08.1]} 9... cxb5 {[%clk 0:03:09]}
10. Ne5 {[%clk 0:03:07.2]} 10... Ba6 {[%clk 0:02:06.6]} 11. Nc6 {[%clk
0:02:41.3]} 11... Qb6 {[%clk 0:01:54.3]} 12. Nxe7+ {[%clk 0:02:41.5]} 12... Kh8
{[%clk 0:01:55.6]} 13. Bxa8 {[%clk 0:02:39.6]} 13... Rxa8 {[%clk 0:01:56.5]} 14.
d5 {[%clk 0:02:35.1]} 14... b4 {[%clk 0:01:29.6]} 15. Nc6 {[%clk 0:02:26.7]}
15... Re8 {[%clk 0:01:29.3]} 16. Re1 {[%clk 0:02:19.8]} 16... Kg8 {[%clk
0:01:22.6]} 17. Qd4 {[%clk 0:02:15.4]} 17... Qb5 {[%clk 0:01:03.7]} 18. a4
{[%clk 0:01:35.9]} 18... bxa3 {[%clk 0:00:35.9]} 19. Nxa3 {[%clk 0:01:29.5]}
19... Qxb3 {[%clk 0:00:32.3]} 20. Qd2 {[%clk 0:01:00.2]} 20... Ne4 {[%clk
0:00:27.6]} 21. Qa5 {[%clk 0:00:39.4]} 21... Bxb2 {[%clk 0:00:22.2]} 22. Qxa6
{[%clk 0:00:40.6]} 22... Bxa1 {[%clk 0:00:15]} 23. Rxa1 {[%clk 0:00:42.5]} 23...
Qb2 {[%clk 0:00:11.8]} 24. Rf1 {[%clk 0:00:42.2]} 24... Ndc5 {[%clk 0:00:11.2]}
25. Qxa7 {[%clk 0:00:40.1]} 25... Qxe2 {[%clk 0:00:10.5]} 26. Nb1 {[%clk
0:00:21.7]} 26... Qf3 {[%clk 0:00:07.8]} 27. Qa3 {[%clk 0:00:22.2]} 27... Qf6
{[%clk 0:00:04.7]} 28. Qe3 {[%clk 0:00:14.6]} 28... Kf8 {[%clk 0:00:05.6]} 29.
Nd2 {[%clk 0:00:13.8]} 29... Ng5 {[%clk 0:00:06.1]} 30. Qd4 {[%clk 0:00:11.2]}
30... Qf5 {[%clk 0:00:04.3]} 31. Qh8# {[%clk 0:00:10.9]} 1-0